bitfinex-derivatives/quotes_ETHF0:USTF0_20260226
["timestamp","ask_amount","ask_price","bid_price","bid_amount"]
[1772114116374,1.22428005,2066.4,2065.6,2.57627419]
[1772114116782,1.22428005,2066.4,2065.6,1.27263149]
[1772114117387,1.22428005,2066.4,2065.6,1.27806585]
[1772114117578,1.22428005,2066.0,2065.2,1.27263149]
[1772114118791,1.22963942,2066.0,2065.2,0.00558451]
[1772114118983,1.22963942,2066.0,2064.9,1.27263149]
[1772114119184,1.22428005,2065.7,2064.9,1.27263149]
[1772114120292,1.22428005,2065.7,2064.9,1.27698397]
[1772114122488,1.22428005,2065.9,2064.9,1.27698397]
[1772114124486,1.22428005,2065.7,2064.9,1.27698397]
[1772114127099,1.23263856,2065.8,2064.9,1.27698397]
[1772114129296,1.23263856,2065.3,2064.1,0.24221]
[1772114129493,1.23263856,2064.9,2063.7,1.17875617]
[1772114129999,1.23263856,2064.9,2064.1,1.17875617]
[1772114130697,1.23263856,2064.9,2064.1,0.00406373]
[1772114131301,1.23263856,2064.9,2063.8,1.17875617]
[1772114132300,1.23263856,2064.9,2063.8,1.18262063]
[1772114133404,1.23263856,2064.9,2063.1,1.17875617]
[1772114133902,1.23263856,2064.9,2063.3,1.17875617]
[1772114134501,1.23263856,2064.7,2063.4,1.42106617]
[1772114137101,1.23263856,2064.7,2063.4,1.17875617]
[1772114137304,1.23263856,2064.6,2063.4,1.17875617]
[1772114138406,1.23263856,2064.6,2063.3,1.23266622]
[1772114139304,1.26011763,2064.4,2063.3,0.00434691]
[1772114139504,0.24218,2064.5,2063.3,0.00434691]
[1772114139505,1.26011763,2064.2,2063.3,0.00434691]
[1772114140007,1.26011763,2064.2,2063.1,1.22831931]
[1772114141004,1.26011763,2064.1,2063.1,1.23436058]
[1772114142000,1.26011763,2064.1,2063.1,0.00604127]
[1772114142808,1.26011763,2064.1,2063.1,1.23436058]
[1772114147716,1.26011763,2063.9,2063.1,1.23436058]
[1772114150217,1.26011763,2064.2,2063.1,1.23436058]
[1772114150419,1.26011763,2064.2,2063.2,1.22831931]
[1772114151520,1.26011763,2064.0,2063.2,1.22831931]
[1772114153821,1.26011763,2064.3,2063.4,1.22831931]
[1772114156120,8.85317036,2064.2,2063.4,1.22831931]
[1772114156325,1.22255138,2064.2,2063.4,1.22831931]
[1772114158026,1.22255138,2064.4,2063.4,1.22831931]
[1772114158229,8.85310851,2064.3,2063.4,1.22831931]
[1772114158429,7.63055713,2064.2,2063.4,1.22831931]
[1772114158727,7.63055713,2064.1,2063.4,1.22831931]
[1772114159027,1.22255138,2064.3,2063.4,1.22831931]
[1772114159222,7.63055974,2064.2,2063.4,1.22831931]
[1772114159428,1.22255138,2064.0,2063.4,1.22831931]
[1772114160524,1.22255138,2063.8,2063.4,1.22831931]
[1772114160920,1.22255138,2063.8,2063.2,1.20202417]
[1772114161428,6.02763688,2064.2,2063.2,1.20202417]
[1772114161429,1.22255138,2064.0,2063.2,1.20202417]
[1772114161628,1.22255138,2063.8,2063.2,1.20202417]
[1772114162128,1.22255138,2064.0,2063.2,1.20202417]
[1772114162322,7.60133595,2063.9,2063.2,1.20202417]
[1772114162523,1.22255138,2064.1,2063.2,1.20202417]
[1772114162823,7.60224596,2064.0,2063.2,1.20202417]
[1772114163030,1.22255138,2064.3,2063.2,1.44435417]
[1772114163230,1.22255138,2064.1,2063.2,1.44435417]
[1772114163523,1.22255138,2063.9,2063.2,1.20202417]
[1772114163728,1.22255138,2063.7,2063.2,1.20202417]
[1772114164325,1.22255138,2063.7,2063.1,0.00604127]
[1772114164622,4.04501904,2064.0,2063.1,1.20806544]
[1772114164830,8.72598988,2063.9,2063.1,1.20806544]
[1772114165023,7.5034385,2063.8,2063.1,1.20806544]
[1772114165223,1.22255138,2063.9,2063.1,1.20806544]
[1772114165424,7.50588067,2063.8,2063.1,1.20806544]
[1772114165623,1.22255138,2063.9,2063.1,1.20806544]
[1772114165824,7.50588413,2063.8,2063.1,1.20806544]
[1772114166023,1.22255138,2063.9,2063.1,1.20806544]
[1772114166224,7.44450531,2063.8,2063.1,1.20806544]
[1772114166424,1.22255138,2063.9,2063.1,1.20806544]
[1772114166624,7.44465275,2063.8,2063.1,1.20806544]
[1772114166828,1.22255138,2063.9,2063.1,1.20806544]
[1772114167026,8.6673119,2063.8,2063.1,1.20806544]
[1772114167225,1.22255138,2063.8,2063.1,1.20806544]
[1772114167526,1.22255138,2063.8,2063.1,0.00604127]
[1772114167831,1.22255138,2063.8,2063.1,1.20806544]
[1772114177234,1.22255138,2063.8,2063.1,0.00604127]
[1772114177440,1.22255138,2063.8,2063.1,1.20806544]
[1772114180542,1.22255138,2063.8,2063.1,0.00604127]
[1772114180836,1.22255138,2063.6,2063.1,0.00604127]
[1772114181742,1.22255138,2063.6,2062.5,1.20202417]
[1772114182140,1.22255138,2063.9,2063.0,1.20202417]
[1772114182642,1.22255138,2063.9,2063.0,1.20581235]
[1772114183447,1.22255138,2063.6,2062.5,1.20202417]
[1772114183650,1.22255138,2063.4,2062.5,1.44443417]
[1772114184451,1.22255138,2063.4,2062.5,1.45041775]
[1772114185748,1.22255138,2063.7,2062.7,1.20202417]
[1772114188553,1.22255138,2063.7,2062.9,1.22741722]
[1772114191651,1.21216403,2064.1,2063.1,1.22741722]
[1772114191856,4.04501904,2064.2,2062.6,6.337]
[1772114191857,1.21216403,2063.9,2062.8,1.22741722]
[1772114193250,1.21216403,2063.7,2062.8,1.22741722]
[1772114194459,1.21216403,2063.5,2062.6,1.22741722]
[1772114195857,1.21216403,2063.5,2062.5,0.00598358]
[1772114195858,1.21216403,2063.5,2062.5,1.2334008]
[1772114199462,1.19450345,2063.3,2062.5,1.2334008]
[1772114212075,1.19450345,2063.7,2062.5,1.4758008]
[1772114212673,1.19450345,2063.7,2062.5,1.2334008]
[1772114212873,1.19450345,2063.5,2062.5,1.2334008]
[1772114214570,1.19450345,2063.5,2062.5,0.00598358]
[1772114214764,1.19450345,2063.3,2062.5,0.00598358]
[1772114215370,1.19450345,2063.3,2062.2,6.338]
[1772114215874,1.19450345,2063.3,2062.2,7.5086778]
[1772114216276,1.19450345,2063.3,2062.2,7.51424642]
[1772114217175,1.19450345,2063.3,2062.3,1.19483963]
[1772114219680,1.19450345,2063.3,2062.5,1.19483963]
[1772114221479,1.23302576,2063.8,2062.7,1.19483963]
[1772114221676,1.23302576,2063.8,2063.0,1.19483963]
[1772114223879,1.23302576,2064.2,2063.2,1.19483963]
[1772114224079,1.23302576,2064.2,2063.4,1.19483963]
[1772114224577,0.00472782,2064.5,2063.4,1.19483963]
[1772114224780,3.00805516,2065.5,2063.4,1.19483963]
[1772114224781,1.23302576,2065.1,2064.0,1.19483963]
[1772114225881,1.23820444,2065.1,2064.0,1.19989149]
[1772114229185,1.23302576,2065.0,2064.0,1.19989149]
[1772114237195,0.00517868,2065.1,2064.0,1.19989149]
[1772114237593,0.00517868,2065.1,2064.4,1.19483963]
[1772114240901,0.00517868,2065.1,2064.3,6.339]
[1772114240902,1.23302576,2066.0,2064.6,1.19483963]
[1772114241700,1.23302576,2066.0,2064.8,1.19483963]
[1772114242004,1.23850496,2066.0,2064.9,1.19483963]
[1772114242999,1.23850496,2066.0,2064.6,1.19483963]
[1772114246603,1.21483933,2065.8,2064.6,1.18105894]
[1772114247406,1.21483933,2065.6,2064.6,1.18105894]
[1772114247607,1.21483933,2065.4,2064.6,1.18105894]
[1772114248407,1.21483933,2065.4,2064.1,1.18105894]
[1772114251500,1.21483933,2065.4,2064.3,1.18105894]
[1772114254209,1.21483933,2065.4,2064.5,1.18105894]
[1772114255712,1.21483933,2065.2,2064.1,1.18105894]
[1772114259513,1.16447602,2065.0,2064.0,0.00505186]
[1772114259714,1.16447602,2064.8,2064.0,1.1606086]
[1772114272929,1.16447602,2065.3,2064.0,1.1606086]
[1772114273228,1.16447602,2065.1,2064.0,1.1606086]
[1772114277226,1.16447602,2065.1,2064.4,1.12955438]
[1772114278623,1.16447602,2065.1,2064.6,1.12955438]
[1772114278829,1.16447602,2065.1,2064.8,1.12955438]
[1772114279129,1.16447602,2065.1,2064.7,1.12955438]
[1772114283731,1.25254476,2065.3,2064.7,1.12955438]
[1772114293742,1.25254476,2065.3,2064.3,1.12955438]
[1772114294137,1.25254476,2065.3,2064.4,1.12955438]
[1772114301349,1.25254476,2065.3,2064.7,1.12955438]
[1772114302345,1.25254476,2065.3,2064.9,1.12955438]
[1772114302550,1.25254476,2065.3,2064.8,1.18164971]
[1772114302551,1.25254476,2065.3,2065.0,2.31120409]
[1772114302755,1.25254476,2065.3,2064.9,1.12955438]
[1772114302953,1.25254476,2065.8,2065.1,1.12955438]
[1772114303657,1.25254476,2065.7,2065.1,1.12955438]
[1772114311766,1.25254476,2065.7,2065.0,1.18168]
[1772114313758,1.23966212,2065.5,2064.6,1.18168]
[1772114313964,1.23966212,2065.3,2064.6,1.18168]
[1772114314162,1.23966212,2065.3,2064.6,2.36332971]
[1772114314366,1.23966212,2065.3,2064.7,1.18168]
[1772114317071,1.23966212,2065.3,2064.2,1.18168]
[1772114321471,1.2087485,2065.1,2064.0,1.21701351]
[1772114321770,1.2087485,2065.0,2064.1,1.21196165]
[1772114322478,1.2087485,2065.0,2064.2,1.21196165]
[1772114330983,1.2087485,2065.1,2064.2,1.21196165]
[1772114333083,1.2087485,2065.1,2064.3,1.42397611]
[1772114333286,1.2087485,2065.7,2064.4,1.21196165]
[1772114334988,1.2087485,2065.7,2064.6,1.21196165]
[1772114337191,1.2087485,2065.7,2064.9,1.24628808]
[1772114341593,0.0054792,2066.0,2064.9,1.24628808]
[1772114341594,1.2359849,2066.0,2064.9,1.24628808]
[1772114349400,1.2359849,2066.0,2065.0,1.24628808]
[1772114349597,1.2359849,2066.0,2065.2,1.24628808]
[1772114352703,1.2359849,2066.0,2065.3,1.24628808]
[1772114352905,1.2085044,2066.7,2065.6,1.24628808]
[1772114353901,1.21413948,2066.7,2065.6,1.25113623]
[1772114355100,1.18177611,2066.4,2065.6,0.00484815]
[1772114355306,1.19926299,2066.3,2065.6,0.00484815]
[1772114355607,1.19926299,2066.3,2065.6,1.25113623]
[1772114357896,1.19926299,2066.3,2065.6,0.00484815]
[1772114358809,1.19926299,2066.3,2065.6,1.25113623]
[1772114360511,1.19926299,2066.3,2065.6,0.00484815]
[1772114362116,1.2305057,2066.0,2065.2,1.24628808]
[1772114363117,1.2305057,2066.0,2065.2,1.25021894]
[1772114364013,1.2305057,2066.0,2065.2,0.00393086]
[1772114366616,1.19595159,2065.7,2065.2,0.00393086]
[1772114366810,1.19595159,2065.7,2064.9,1.12399538]
[1772114367812,1.19595159,2065.4,2064.9,0.00565883]
[1772114368012,1.19595159,2065.4,2064.6,1.12399538]
[1772114369113,1.19595159,2065.4,2064.6,1.12808444]
[1772114377225,1.16482737,2065.2,2064.6,1.12808444]
[1772114377517,1.17101028,2065.2,2064.6,1.12808444]
[1772114377718,0.00618291,2065.2,2064.8,1.12299449]
[1772114378124,1.16482737,2065.4,2064.8,1.12299449]
[1772114379125,1.17063645,2065.4,2064.8,1.12299449]
[1772114380431,1.16482737,2065.2,2064.7,1.12299449]
[1772114388132,1.16482737,2065.2,2064.4,1.12299449]
[1772114388334,1.16482737,2065.3,2064.7,1.12299449]
[1772114388527,1.16482737,2065.3,2064.9,1.12299449]
[1772114389336,1.16482737,2065.3,2064.9,1.1274785]
[1772114390934,1.16482737,2065.3,2064.9,0.00448401]
[1772114391136,1.16482737,2065.3,2064.7,1.12299449]
[1772114392336,1.16482737,2065.3,2064.7,1.12916015]
[1772114402537,5.20130028,2065.8,2065.1,1.18749352]
[1772114402835,2.34161761,2066.2,2065.5,1.18749352]
[1772114403037,1.15964234,2065.7,2065.3,1.18749352]
[1772114403242,1.15964234,2065.5,2065.0,1.18749352]
[1772114403438,1.15964234,2065.3,2064.7,1.19365918]
[1772114403739,1.15964234,2065.3,2064.7,0.00616566]
[1772114403740,1.16482292,2065.3,2064.7,0.00616566]
[1772114403938,1.16482292,2065.3,2064.7,1.19365918]
[1772114404141,1.16482292,2065.3,2064.7,0.00616566]
[1772114404342,1.15964234,2065.2,2064.7,1.19365918]
[1772114405839,16.89381511,2066.0,2064.7,1.19365918]
[1772114405840,1.15964234,2065.6,2065.0,1.18749352]
[1772114406043,1.18197527,2065.9,2065.2,1.18749352]
[1772114406044,1.15964234,2065.8,2065.2,1.18749352]
[1772114406543,1.15964234,2065.8,2065.0,1.18749352]
[1772114406744,1.15964234,2065.6,2065.0,1.18749352]
[1772114406936,1.15964234,2065.4,2064.9,1.18749352]
[1772114407939,1.15964234,2065.3,2064.8,1.18749352]
[1772114408144,1.15964234,2065.1,2064.7,1.19365918]
[1772114408840,1.15964234,2065.3,2064.7,1.19365918]
[1772114410347,1.15964234,2065.3,2064.8,1.18749352]
[1772114410547,1.15964234,2065.5,2065.0,1.18749352]
[1772114410742,0.00367415,2065.6,2065.0,1.18749352]
[1772114410948,1.16331649,2065.6,2065.0,1.18749352]
[1772114415854,1.15964234,2065.2,2064.7,1.19365918]
[1772114418351,1.16331649,2065.6,2065.1,1.18749352]
[1772114418551,1.16331649,2065.6,2064.7,0.00616566]
[1772114418552,0.00367415,2065.6,2065.3,1.18749352]
[1772114418753,1.15964234,2065.8,2065.3,1.18749352]
[1772114419753,1.16587581,2065.8,2065.3,1.18749352]
[1772114420658,1.15515966,2066.0,2065.5,1.18749352]
[1772114421651,1.16078716,2066.0,2065.5,1.18749352]
[1772114424660,1.15964234,2065.7,2064.8,1.18749352]
[1772114425061,1.15964234,2065.7,2064.9,1.18197527]
[1772114425260,1.15964234,2065.7,2065.0,1.18749352]
[1772114428163,1.08229128,2065.3,2064.7,1.20263618]
[1772114429362,1.08229128,2065.1,2064.7,1.20263618]
[1772114430467,1.08229128,2065.1,2064.3,1.19647052]
[1772114430670,1.08229128,2065.1,2064.4,1.19647052]
[1772114431467,1.08229128,2064.9,2064.4,1.20110963]
[1772114432963,1.08229128,2064.9,2064.4,0.00463911]
[1772114433166,1.08229128,2064.8,2064.0,1.19647052]
[1772114433568,1.08229128,2064.6,2064.0,1.19647052]
[1772114433868,1.08229128,2064.6,2063.8,1.19647052]
[1772114434062,1.08229128,2064.4,2063.8,1.20064807]
[1772114434261,1.08780466,2064.4,2063.8,1.20064807]
[1772114434970,1.08780466,2064.4,2063.8,0.00417755]
[1772114435166,1.08229128,2064.2,2063.8,0.00417755]
[1772114435470,1.08229128,2064.2,2063.6,1.19647052]
[1772114435666,1.08229128,2064.2,2063.7,1.19647052]
[1772114436371,1.08229128,2064.2,2063.7,1.20016859]
[1772114437967,1.08229128,2064.2,2063.7,0.00369807]
[1772114438673,1.08229128,2064.2,2063.6,1.08103718]
[1772114439576,1.08229128,2064.2,2063.6,1.08503158]
[1772114440773,1.08229128,2064.2,2063.5,1.08103718]
[1772114441574,1.08229128,2064.2,2063.5,0.00419943]
[1772114441772,1.08229128,2064.2,2063.6,1.08103718]
[1772114441969,1.08229128,2064.2,2063.5,0.00419943]
[1772114443473,1.16506149,2064.0,2062.8,1.08103718]
[1772114444266,1.16506149,2064.0,2062.8,1.08583566]
[1772114445070,1.16506149,2063.8,2062.8,1.08583566]
[1772114445576,1.16506149,2063.6,2062.8,0.00479848]
[1772114446175,1.16506149,2063.6,2062.8,1.08583566]
[1772114447177,1.16506149,2063.6,2062.6,1.08103718]
[1772114447471,1.16506149,2063.6,2062.3,1.08103718]
[1772114447677,1.16506149,2063.4,2062.3,1.08103718]
[1772114448177,1.16506149,2063.4,2062.3,1.08654393]
[1772114458381,1.16506149,2063.4,2062.5,0.96774199]
[1772114461987,1.03677619,2063.7,2062.8,0.96774199]
[1772114462186,1.03677619,2063.9,2062.8,0.96774199]
[1772114463783,1.03677619,2063.9,2063.1,0.96774199]
[1772114464494,1.03677619,2064.1,2063.1,0.96774199]
[1772114464692,0.00551338,2064.4,2063.4,0.96774199]
[1772114464693,1.03677619,2064.2,2063.4,0.96774199]
[1772114465694,1.03677619,2064.0,2062.9,0.96774199]
[1772114467088,1.03677619,2063.9,2062.9,0.96774199]
[1772114467387,1.03677619,2063.7,2062.9,0.96774199]
[1772114467584,1.03677619,2063.6,2062.4,0.96774199]
[1772114468497,1.03677619,2063.4,2062.4,0.96774199]
[1772114471692,1.03677619,2063.4,2062.6,0.96774199]
[1772114471888,1.03677619,2063.5,2062.6,0.96774199]
[1772114472198,1.03677619,2063.5,2062.9,0.96774199]
[1772114472394,1.03677619,2063.6,2062.9,0.96774199]
[1772114472898,1.03677619,2063.4,2062.9,0.96774199]
[1772114474398,4.04165794,2063.8,2062.9,0.96774199]
[1772114474598,1.03677619,2063.6,2062.9,0.96774199]
[1772114474898,1.03677619,2063.7,2062.9,0.96774199]
[1772114475500,1.03677619,2063.9,2062.9,0.96774199]
[1772114475895,1.03677619,2064.0,2063.1,0.96774199]
[1772114476200,1.03677619,2063.9,2063.1,0.96774199]
[1772114476697,11.36865794,2064.1,2063.1,0.96774199]
[1772114476698,1.03677619,2063.7,2063.1,0.96774199]
[1772114478196,4.04165794,2064.0,2063.1,0.96774199]
[1772114478396,1.03677619,2064.1,2063.1,0.96774199]
[1772114479497,1.03677619,2064.1,2063.3,0.96774199]
[1772114479800,1.03677619,2064.3,2063.3,0.96774199]
[1772114485102,0.00551338,2064.4,2063.3,0.96774199]
[1772114485407,1.03677619,2064.3,2063.3,0.96774199]
[1772114488200,0.85564492,2064.1,2063.3,0.96774199]
[1772114500208,0.78645854,2063.9,2063.0,0.8418523]
[1772114500408,0.78645854,2063.7,2063.0,0.8418523]
[1772114501110,0.78645854,2063.7,2062.9,0.8418523]
[1772114501310,0.78645854,2063.5,2062.8,0.8418523]
[1772114501511,0.78645854,2063.5,2062.4,0.8418523]
[1772114502411,0.78645854,2063.3,2062.4,0.8418523]
[1772114504316,0.78645854,2063.5,2062.6,0.8418523]
[1772114504516,0.78645854,2063.6,2062.6,0.8418523]
[1772114505210,0.78645854,2063.6,2062.7,0.24239]
[1772114505416,0.78645854,2063.6,2062.8,0.8418523]
[1772114506120,0.78645854,2064.0,2063.0,0.8418523]
[1772114509025,0.78645854,2063.8,2063.0,0.8418523]
[1772114518134,0.78645854,2063.8,2062.8,0.791554]
[1772114518338,0.74271141,2063.6,2062.5,0.791554]
[1772114518539,0.74271141,2063.4,2062.5,0.791554]
[1772114520436,0.74271141,2063.6,2062.7,0.791554]
[1772114522747,11.55225296,2064.0,2062.9,0.791554]
[1772114522748,0.74271141,2063.9,2062.9,0.791554]
[1772114523444,0.74271141,2063.8,2062.7,0.791554]
[1772114523643,0.24229,2063.5,2062.7,0.791554]
[1772114523851,0.74271141,2063.3,2062.5,0.791554]
[1772114528445,0.74271141,2063.3,2062.3,0.79706075]
[1772114528853,0.74271141,2063.1,2062.3,0.79706075]
[1772114530854,0.74271141,2063.1,2062.3,0.00550675]
[1772114531152,0.74271141,2063.0,2062.3,0.00550675]
[1772114531351,0.74271141,2063.0,2061.9,0.791554]
[1772114531551,0.74271141,2062.8,2061.9,0.791554]
[1772114532048,7.98871141,2062.8,2061.9,0.791554]
[1772114532243,0.74271141,2063.2,2062.1,0.791554]
[1772114532450,0.0052124,2062.8,2062.1,0.791554]
[1772114533445,0.0052124,2062.8,2061.6,6.331]
[1772114533446,0.74271141,2062.7,2060.9,0.791554]
[1772114533651,0.74271141,2062.5,2061.3,0.791554]
[1772114533851,0.74271141,2062.5,2061.5,0.791554]
[1772114534051,0.74792381,2062.8,2061.7,0.791554]
[1772114534554,0.74792381,2062.8,2061.7,0.79679906]
[1772114540461,0.74792381,2062.8,2061.9,0.791554]
[1772114540650,0.0052124,2062.8,2061.9,0.791554]
[1772114540960,0.0052124,2062.8,2062.1,0.791554]
[1772114541158,0.0052124,2062.8,2062.3,0.791554]
[1772114541359,0.74271141,2063.0,2062.3,0.791554]
[1772114542259,0.74821946,2063.0,2062.3,0.791554]
[1772114542661,0.74821946,2063.0,2061.8,0.791554]
[1772114544259,0.74271141,2062.8,2061.7,0.00524506]
[1772114544463,0.74271141,2062.6,2061.8,0.791554]
[1772114544857,0.74271141,2062.6,2061.7,0.79679906]
[1772114545058,0.74271141,2062.4,2061.7,0.00524506]
[1772114545457,0.74271141,2062.4,2061.7,0.79679906]
[1772114546660,0.74271141,2062.4,2061.7,0.00524506]
[1772114547655,0.70458604,2062.2,2061.1,0.68206968]
[1772114547860,0.70458604,2062.0,2061.1,0.68206968]
[1772114548561,0.70458604,2062.0,2061.1,0.6861131]
[1772114549260,0.70458604,2062.2,2061.1,0.6861131]
[1772114549653,0.70458604,2062.2,2061.3,0.68206968]
[1772114550054,0.70458604,2062.6,2061.3,0.68206968]
[1772114550256,0.70458604,2062.4,2061.4,0.24257]
[1772114550461,0.70458604,2062.4,2061.6,0.68206968]
[1772114551858,0.24241,2062.8,2061.6,0.68206968]
[1772114552058,0.70458604,2062.7,2061.8,0.68206968]
[1772114554871,0.70458604,2062.7,2061.9,0.68206968]
[1772114555471,0.70458604,2062.7,2061.7,0.68206968]
[1772114555673,0.70458604,2062.5,2061.7,0.68206968]
[1772114557374,7.16729762,2062.4,2061.5,0.68206968]
[1772114557572,0.6881519,2062.3,2061.5,0.68206968]
[1772114559474,0.6881519,2062.1,2061.3,0.65312267]
[1772114559676,0.6881519,2061.9,2061.3,0.65312267]
[1772114560670,0.6881519,2061.9,2061.1,0.65716609]
[1772114562171,0.6881519,2061.9,2061.2,0.65312267]
[1772114564675,0.6881519,2062.1,2061.2,0.65312267]
[1772114564978,0.6881519,2062.0,2061.2,0.65312267]
[1772114566882,0.6881519,2062.0,2061.1,0.65716609]
[1772114567583,0.6881519,2061.8,2061.1,0.65716609]
[1772114569384,0.6881519,2061.8,2061.1,0.00404342]
[1772114570686,0.6881519,2061.6,2060.7,0.65312267]
[1772114570884,0.6881519,2061.6,2059.5,3.1003767]
[1772114570885,0.6881519,2060.9,2059.5,0.65312267]
[1772114571182,0.6881519,2061.6,2060.2,0.65312267]
[1772114571378,0.6881519,2061.5,2060.4,0.65312267]
[1772114571584,0.6881519,2061.9,2060.6,0.65312267]
[1772114571886,0.6881519,2061.7,2060.6,0.65803627]
[1772114572184,0.6881519,2061.7,2060.7,0.65312267]
[1772114572386,0.6881519,2061.7,2060.9,0.65312267]
[1772114572780,0.6881519,2061.7,2061.0,0.65312267]
[1772114582893,0.6881519,2061.7,2061.1,6.346]
[1772114583093,0.6881519,2061.7,2061.2,0.66743955]
[1772114583299,0.00585341,2061.9,2061.2,0.66743955]
[1772114583497,4.04800296,2062.5,2061.3,0.24258]
[1772114583695,7.14990577,2062.4,2061.4,0.67950748]
[1772114583896,4.04800296,2062.6,2061.6,0.68484346]
[1772114584097,7.13597945,2062.5,2061.6,0.68484346]
[1772114584295,4.04800296,2062.8,2061.6,0.68484346]
[1772114584496,7.13853716,2062.7,2061.6,0.68484346]
[1772114584696,7.13853716,2062.6,2061.6,0.68484346]
[1772114584892,0.00525385,2062.8,2061.6,0.68484346]
[1772114585091,7.13834855,2062.7,2061.6,0.68484346]
[1772114585292,0.2425,2062.0,2061.1,0.68492844]
[1772114585600,7.13834855,2061.9,2060.9,0.68492844]
[1772114585799,4.04800296,2062.2,2060.9,0.68492844]
[1772114585997,7.13561471,2062.1,2060.9,0.68492844]
[1772114586300,7.13868411,2062.0,2061.1,0.68822829]
[1772114586494,4.04800296,2062.2,2061.1,0.68822829]
[1772114586799,7.13879125,2062.1,2061.1,0.68822829]
[1772114586999,7.13879125,2062.1,2060.6,0.0049136]
[1772114587000,7.13879125,2062.0,2061.2,7.03430583]
[1772114587195,4.04800296,2062.3,2061.2,7.03430583]
[1772114587395,7.13997153,2062.2,2061.3,0.68830583]
[1772114587597,7.13997153,2062.1,2061.3,0.68830583]
[1772114587900,4.04800296,2062.4,2061.3,0.68830583]
[1772114588093,7.14225433,2062.3,2061.3,0.68830583]
[1772114588292,7.14225433,2062.2,2061.3,0.68830583]
[1772114588495,7.14225433,2062.1,2061.3,0.68830583]
[1772114588693,4.04800296,2062.3,2061.3,0.68830583]
[1772114588894,7.14339625,2062.2,2061.3,0.68830583]
[1772114589100,7.14339625,2062.1,2061.3,0.68830583]
[1772114589296,4.04800296,2062.4,2061.4,0.6891164]
[1772114589498,7.14587537,2062.3,2061.4,0.6891164]
[1772114589699,4.04800296,2062.6,2061.4,0.6891164]
[1772114590003,6.09665896,2062.8,2061.4,0.6891164]
[1772114590004,7.14587706,2062.5,2061.4,0.6891164]
[1772114590205,7.14587706,2062.4,2061.4,0.6891164]
[1772114590506,4.04800296,2062.7,2061.4,0.6891164]
[1772114590697,7.1443624,2062.6,2061.4,0.6891164]
[1772114591005,7.1443624,2062.5,2061.4,0.6891164]
[1772114591202,7.1443624,2062.4,2061.4,0.6891164]
[1772114591400,7.1443624,2062.3,2061.4,0.6891164]
[1772114591596,7.1443624,2062.2,2061.4,0.6891164]
[1772114591802,7.1443624,2062.1,2061.4,0.6891164]
[1772114592002,4.04800296,2062.4,2061.4,0.6891164]
[1772114592200,7.21136349,2062.3,2061.4,0.6891164]
[1772114592410,7.21136349,2062.2,2061.4,0.6891164]
[1772114592609,7.21136349,2062.1,2061.4,0.6891164]
[1772114592907,4.04800296,2062.4,2061.4,0.6891164]
[1772114593101,7.21122734,2062.3,2061.4,0.6891164]
[1772114593301,7.21122734,2062.2,2061.4,0.6891164]
[1772114593504,4.04800296,2062.4,2061.4,0.6891164]
[1772114593804,7.21131793,2062.3,2061.4,0.6891164]
[1772114594009,7.21131793,2062.2,2061.4,0.6891164]
[1772114594200,4.04800296,2062.4,2061.4,0.6891164]
[1772114594406,7.21153165,2062.3,2061.4,0.6891164]
[1772114594608,4.29043296,2062.6,2061.4,0.6891164]
[1772114594810,7.21196347,2062.5,2061.4,0.6891164]
[1772114595004,7.21196347,2062.4,2061.4,0.6891164]
[1772114595204,7.21196347,2062.3,2061.4,0.6891164]
[1772114595505,4.29043296,2062.6,2061.4,0.6891164]
[1772114595700,7.21268714,2062.5,2061.4,0.6891164]
[1772114595907,7.21268714,2062.4,2061.4,0.6891164]
[1772114596205,7.21268714,2062.3,2061.4,0.6891164]
[1772114596403,4.29043296,2062.6,2061.4,0.6891164]
[1772114596600,7.21249891,2062.5,2061.4,0.6891164]
[1772114596907,7.21249891,2062.4,2061.4,0.6891164]
[1772114597108,7.21249891,2062.3,2061.4,0.6891164]
[1772114597307,4.29043296,2062.6,2061.4,0.6891164]
[1772114597508,7.21188474,2062.5,2061.4,0.6891164]
[1772114597812,7.21188474,2062.4,2061.4,0.6891164]
[1772114598008,7.21188474,2062.3,2061.4,0.6891164]
[1772114598208,7.21188474,2062.2,2061.4,0.6891164]
[1772114598407,4.04800296,2062.5,2061.4,0.6891164]
[1772114598609,11.26067925,2062.5,2061.4,0.6891164]
[1772114599412,7.21267629,2062.4,2061.4,0.6891164]
[1772114599608,7.21267629,2062.3,2061.4,0.6891164]
[1772114599804,4.29043296,2062.6,2061.4,0.6891164]
[1772114600008,7.21336862,2062.5,2061.4,0.6891164]
[1772114600208,7.21336862,2062.4,2061.4,0.6891164]
[1772114600508,4.04800296,2062.7,2061.4,0.6891164]
[1772114600709,7.21467532,2062.6,2061.4,0.6891164]
[1772114601010,7.21467532,2062.5,2061.4,0.6891164]
[1772114601210,7.21467532,2062.4,2061.4,0.6891164]
[1772114601511,4.04800296,2062.6,2061.4,0.6891164]
[1772114601911,11.26527127,2062.6,2061.4,0.6891164]
[1772114602209,7.21726831,2062.5,2061.4,0.6891164]
[1772114602414,7.21726831,2062.4,2061.4,0.6891164]
[1772114602607,4.04800296,2062.6,2061.4,0.6891164]
[1772114603009,11.26523431,2062.6,2061.4,0.6891164]
[1772114603304,7.21723135,2062.5,2061.4,0.6891164]
[1772114603504,7.21723135,2062.4,2061.4,0.6891164]
[1772114603709,4.04800296,2062.6,2061.5,0.24255]
[1772114603910,0.00525385,2062.8,2061.8,0.71029638]
[1772114604107,7.21915349,2062.7,2062.0,0.71029638]
[1772114604304,0.00525385,2062.8,2062.0,0.71029638]
[1772114604508,7.18144669,2062.7,2062.0,0.71029638]
[1772114604704,0.00525385,2062.8,2062.0,0.71029638]
[1772114604913,7.18147344,2062.7,2062.0,0.71029638]
[1772114605107,0.00525385,2062.8,2062.0,0.71029638]
[1772114605307,7.17894684,2062.7,2062.0,0.71029638]
[1772114605503,0.00525385,2062.8,2062.0,0.71029638]
[1772114605705,7.17976752,2062.7,2062.0,0.71029638]
[1772114605910,0.00525385,2062.8,2062.0,0.71029638]
[1772114606111,7.17978688,2062.7,2062.0,0.71029638]
[1772114606307,0.00525385,2062.8,2062.0,0.71029638]
[1772114606503,7.17940129,2062.7,2061.8,7.07266213]
[1772114606704,0.00525385,2062.8,2061.8,7.07266213]
[1772114606906,7.17972866,2062.7,2061.8,7.07266213]
[1772114607105,0.00525385,2062.8,2061.9,0.72568718]
[1772114607304,7.17900464,2062.7,2061.9,0.72568718]
[1772114607509,0.00525385,2062.8,2061.9,0.72568718]
[1772114607714,7.17985274,2062.7,2061.9,0.72568718]
[1772114607912,0.00525385,2062.8,2061.9,0.72568718]
[1772114608215,7.17983798,2062.7,2061.9,0.72568718]
[1772114608416,0.00525385,2062.8,2061.9,0.72568718]
[1772114608816,0.00525385,2062.8,2062.1,0.72152598]
[1772114609114,0.00525385,2062.8,2062.1,0.72743729]
[1772114611717,0.00525385,2062.8,2062.3,0.71715982]
[1772114612212,7.215,2063.2,2062.3,0.71715982]
[1772114612514,7.253,2063.5,2062.3,0.71715982]
[1772114612818,11.30300296,2063.8,2062.5,0.71864021]
[1772114613011,7.17680824,2063.7,2062.5,0.71864021]
[1772114613208,7.25961345,2063.8,2062.5,0.71864021]
[1772114613412,0.00461345,2063.8,2062.5,0.71864021]